[Event "Early-Titled-Tuesday-Blitz-April-02-2024"]
[Site "Chess.com"]
[Date "2024.04.02"]
[Round "3"]
[White "DreamsAreFake"]
[Black "Smiechu"]
[Result "1-0"]
[WhiteElo "2746"]
[BlackElo "2444"]
[TimeControl "180+1"]
[EndTime "8:28:03 PDT"]
[Termination "DreamsAreFake won on time"]

1. Nf3 {[%clk 0:02:56.9]} 1... Nf6 {[%clk 0:02:57.2]} 2. g3 {[%clk 0:02:57.2]}
2... c5 {[%clk 0:02:57.3]} 3. Bg2 {[%clk 0:02:57.7]} 3... Nc6 {[%clk 0:02:57.9]}
4. O-O {[%clk 0:02:56.5]} 4... g6 {[%clk 0:02:57.6]} 5. b3 {[%clk 0:02:54.1]}
5... Bg7 {[%clk 0:02:57.7]} 6. Bb2 {[%clk 0:02:54.9]} 6... O-O {[%clk
0:02:58.1]} 7. c4 {[%clk 0:02:55.6]} 7... d6 {[%clk 0:02:57.7]} 8. e3 {[%clk
0:02:55.7]} 8... e5 {[%clk 0:02:57.3]} 9. d3 {[%clk 0:02:53.5]} 9... a6 {[%clk
0:02:54.9]} 10. Nc3 {[%clk 0:02:54.1]} 10... Rb8 {[%clk 0:02:54]} 11. d4 {[%clk
0:02:49.1]} 11... Bg4 {[%clk 0:02:33.5]} 12. dxc5 {[%clk 0:02:44]} 12... e4
{[%clk 0:02:19.7]} 13. cxd6 {[%clk 0:02:16.2]} 13... exf3 {[%clk 0:02:17.3]} 14.
Bh1 {[%clk 0:02:16.5]} 14... Ne4 {[%clk 0:01:52.5]} 15. Nxe4 {[%clk 0:02:15.8]}
15... Bxb2 {[%clk 0:01:51.9]} 16. Rb1 {[%clk 0:02:16.5]} 16... Bg7 {[%clk
0:01:43.4]} 17. c5 {[%clk 0:02:16.7]} 17... Ne5 {[%clk 0:01:34.7]} 18. b4 {[%clk
0:02:13.3]} 18... Qd7 {[%clk 0:01:17.3]} 19. Nd2 {[%clk 0:01:46.1]} 19... Bh3
{[%clk 0:01:09.8]} 20. Nxf3 {[%clk 0:01:15.7]} 20... Bxf1 {[%clk 0:01:02.3]} 21.
Qxf1 {[%clk 0:01:16.6]} 21... Nxf3+ {[%clk 0:00:59.3]} 22. Bxf3 {[%clk
0:01:17.5]} 22... b6 {[%clk 0:00:55.2]} 23. Rc1 {[%clk 0:01:16.8]} 23... bxc5
{[%clk 0:00:54.2]} 24. bxc5 {[%clk 0:01:17.7]} 24... Rfc8 {[%clk 0:00:48.3]} 25.
Qxa6 {[%clk 0:01:15.9]} 25... Qb5 {[%clk 0:00:32]} 26. Qxb5 {[%clk 0:00:57.4]}
26... Rxb5 {[%clk 0:00:32]} 27. c6 {[%clk 0:00:58.3]} 27... Be5 {[%clk
0:00:17.6]} 28. d7 {[%clk 0:00:54.1]} 28... Rd8 {[%clk 0:00:11.9]} 29. c7 {[%clk
0:00:54.7]} 29... Bxc7 {[%clk 0:00:11.6]} 30. Rxc7 {[%clk 0:00:55.6]} 30... Kf8
{[%clk 0:00:11.3]} 31. a4 {[%clk 0:00:45.6]} 31... Rb1+ {[%clk 0:00:08.3]} 32.
Kg2 {[%clk 0:00:44.9]} 32... Ra1 {[%clk 0:00:09.2]} 33. Bc6 {[%clk 0:00:44]}
33... Ke7 {[%clk 0:00:09.8]} 34. Bb5 {[%clk 0:00:42.6]} 34... Kd6 {[%clk
0:00:09]} 35. Rc6+ {[%clk 0:00:41.1]} 35... Ke7 {[%clk 0:00:08.4]} 36. Rc4
{[%clk 0:00:41]} 36... h6 {[%clk 0:00:07.7]} 37. Re4+ {[%clk 0:00:41.2]} 37...
Kd6 {[%clk 0:00:06.8]} 38. Re8 {[%clk 0:00:40.6]} 38... Kc7 {[%clk 0:00:06.9]}
39. Re7 {[%clk 0:00:41.1]} 39... f6 {[%clk 0:00:05.5]} 40. Rf7 {[%clk
0:00:39.9]} 40... f5 {[%clk 0:00:05.1]} 41. Rf6 {[%clk 0:00:39.4]} 41... f4
{[%clk 0:00:04.3]} 42. gxf4 {[%clk 0:00:35.1]} 42... Rg8 {[%clk 0:00:03.9]} 43.
Re6 {[%clk 0:00:33.7]} 43... Rd1 {[%clk 0:00:02.1]} 44. Re8 {[%clk 0:00:32.7]}
44... Rg7 {[%clk 0:00:02.2]} 45. Rc8+ {[%clk 0:00:33]} 1-0

[Event "Early-Titled-Tuesday-Blitz-April-02-2024"]
[Site "Chess.com"]
[Date "2024.04.02"]
[Round "3"]
[White "FairChess_on_YouTube"]
[Black "GnowReopard"]
[Result "1-0"]
[WhiteElo "3079"]
[BlackElo "2759"]
[TimeControl "180+1"]
[EndTime "8:28:04 PDT"]
[Termination "FairChess_on_YouTube won by resignation"]

1. Nf3 {[%clk 0:03:00.9]} 1... Nf6 {[%clk 0:02:58.8]} 2. c4 {[%clk 0:03:00.4]}
2... g6 {[%clk 0:02:53.3]} 3. b4 {[%clk 0:02:56]} 3... Bg7 {[%clk 0:02:51]} 4.
Bb2 {[%clk 0:02:55.5]} 4... Na6 {[%clk 0:02:50.9]} 5. a3 {[%clk 0:02:43.4]} 5...
c5 {[%clk 0:02:50.9]} 6. b5 {[%clk 0:02:43]} 6... Nc7 {[%clk 0:02:50.9]} 7. d3
{[%clk 0:02:42.1]} 7... d5 {[%clk 0:02:39.4]} 8. Nbd2 {[%clk 0:02:42.2]} 8... d4
{[%clk 0:02:38.8]} 9. g3 {[%clk 0:02:40.6]} 9... O-O {[%clk 0:02:38.1]} 10. Bg2
{[%clk 0:02:40.2]} 10... Nfe8 {[%clk 0:02:32.6]} 11. a4 {[%clk 0:02:29]} 11...
Nd6 {[%clk 0:02:29.7]} 12. a5 {[%clk 0:02:26.9]} 12... Rb8 {[%clk 0:02:26.9]}
13. O-O {[%clk 0:02:19.7]} 13... e5 {[%clk 0:02:26.8]} 14. Re1 {[%clk 0:02:14]}
14... h6 {[%clk 0:02:18.9]} 15. e3 {[%clk 0:02:11]} 15... Bf5 {[%clk 0:02:18.5]}
16. exd4 {[%clk 0:02:10.8]} 16... exd4 {[%clk 0:02:17.3]} 17. Nb3 {[%clk
0:02:09.7]} 17... b6 {[%clk 0:02:15]} 18. axb6 {[%clk 0:02:08.4]} 18... axb6
{[%clk 0:02:15.9]} 19. Ne5 {[%clk 0:02:08.6]} 19... Bxe5 {[%clk 0:01:57.4]} 20.
Rxe5 {[%clk 0:02:09.5]} 20... Qf6 {[%clk 0:01:56.8]} 21. Re1 {[%clk 0:01:50.4]}
21... Rfe8 {[%clk 0:01:48.2]} 22. Qd2 {[%clk 0:01:49.2]} 22... h5 {[%clk
0:01:47]} 23. Qf4 {[%clk 0:01:37.2]} 23... Rxe1+ {[%clk 0:01:40.3]} 24. Rxe1
{[%clk 0:01:38.1]} 24... Rd8 {[%clk 0:01:40.6]} 25. Nxd4 {[%clk 0:01:27.6]}
25... Re8 {[%clk 0:00:44.5]} 26. Rxe8+ {[%clk 0:01:18.8]} 26... Ncxe8 {[%clk
0:00:45.4]} 27. Nxf5 {[%clk 0:01:13.8]} 27... Qxf5 {[%clk 0:00:45.7]} 28. Qe3
{[%clk 0:01:04.8]} 28... Kf8 {[%clk 0:00:20.3]} 29. Bc6 {[%clk 0:00:51.4]} 29...
Nc7 {[%clk 0:00:13]} 30. Be5 {[%clk 0:00:48.7]} 30... Qe6 {[%clk 0:00:13]} 31.
Qf4 {[%clk 0:00:45.6]} 31... Nce8 {[%clk 0:00:12.2]} 32. Bd5 {[%clk 0:00:43.3]}
32... Qd7 {[%clk 0:00:09.2]} 33. Qh6+ {[%clk 0:00:40.4]} 33... Ke7 {[%clk
0:00:09]} 34. Qg5+ {[%clk 0:00:38.8]} 34... f6 {[%clk 0:00:09.3]} 35. Bxd6+
{[%clk 0:00:37.9]} 35... Qxd6 {[%clk 0:00:06.1]} 36. Qxg6 {[%clk 0:00:37.9]}
36... Qe5 {[%clk 0:00:06.7]} 37. Qf7+ {[%clk 0:00:35.7]} 37... Kd6 {[%clk
0:00:06.3]} 38. Bc6 {[%clk 0:00:28.3]} 38... Qe1+ {[%clk 0:00:03.6]} 39. Kg2
{[%clk 0:00:27.9]} 39... Qe6 {[%clk 0:00:02.4]} 40. Qxe6+ {[%clk 0:00:27.6]} 1-0

[Event "Early-Titled-Tuesday-Blitz-April-02-2024"]
[Site "Chess.com"]
[Date "2024.04.02"]
[Round "3"]
[White "vladislavkovalev"]
[Black "Boundless_Strike"]
[Result "1-0"]
[WhiteElo "2888"]
[BlackElo "2666"]
[TimeControl "180+1"]
[EndTime "8:28:04 PDT"]
[Termination "vladislavkovalev won by checkmate"]

1. e4 {[%clk 0:03:00.9]} 1... d6 {[%clk 0:02:54.9]} 2. d4 {[%clk 0:03:01]} 2...
Nf6 {[%clk 0:02:55.4]} 3. Nc3 {[%clk 0:03:01.6]} 3... c6 {[%clk 0:02:56]} 4. a4
{[%clk 0:02:56.7]} 4... Qa5 {[%clk 0:02:54.9]} 5. Bd3 {[%clk 0:02:54.6]} 5... e5
{[%clk 0:02:54.7]} 6. Ne2 {[%clk 0:02:52.4]} 6... Be7 {[%clk 0:02:54]} 7. O-O
{[%clk 0:02:51.8]} 7... O-O {[%clk 0:02:53.6]} 8. Bd2 {[%clk 0:02:48.4]} 8...
Qc7 {[%clk 0:02:53.3]} 9. a5 {[%clk 0:02:48.6]} 9... Nbd7 {[%clk 0:02:48.9]} 10.
h3 {[%clk 0:02:31.9]} 10... Re8 {[%clk 0:02:48.5]} 11. f4 {[%clk 0:02:21.4]}
11... Bf8 {[%clk 0:02:37.9]} 12. dxe5 {[%clk 0:02:17.1]} 12... dxe5 {[%clk
0:02:37.5]} 13. f5 {[%clk 0:02:17.9]} 13... Nc5 {[%clk 0:02:33.9]} 14. Ng3
{[%clk 0:02:04.7]} 14... Nxd3 {[%clk 0:02:25.4]} 15. cxd3 {[%clk 0:02:05.6]}
15... Rd8 {[%clk 0:01:29.2]} 16. Bg5 {[%clk 0:02:03.6]} 16... Qd6 {[%clk
0:01:29.3]} 17. Rf3 {[%clk 0:01:59.4]} 17... Be7 {[%clk 0:01:25]} 18. Kh1 {[%clk
0:01:54.6]} 18... Bd7 {[%clk 0:01:24.1]} 19. Qe1 {[%clk 0:01:46.8]} 19... c5
{[%clk 0:01:20.3]} 20. Bxf6 {[%clk 0:01:44.4]} 20... Bxf6 {[%clk 0:01:20.5]} 21.
Nd5 {[%clk 0:01:43.8]} 21... Bc6 {[%clk 0:01:12]} 22. Nxf6+ {[%clk 0:01:43.1]}
22... Qxf6 {[%clk 0:01:12.7]} 23. Nh5 {[%clk 0:01:43.9]} 23... Qg5 {[%clk
0:01:05.2]} 24. Nxg7 {[%clk 0:01:41.3]} 24... Kh8 {[%clk 0:00:44.1]} 25. f6
{[%clk 0:01:41.1]} 25... Rd6 {[%clk 0:00:40.1]} 26. Qf2 {[%clk 0:01:17.5]} 26...
Rad8 {[%clk 0:00:37.1]} 27. Rf1 {[%clk 0:01:07.5]} 27... Rxd3 {[%clk 0:00:33.5]}
28. Rxd3 {[%clk 0:01:08.4]} 28... Rxd3 {[%clk 0:00:33.3]} 29. Qxc5 {[%clk
0:01:09.1]} 29... Rxh3+ {[%clk 0:00:28.9]} 30. Kg1 {[%clk 0:01:01.5]} 30... Qe3+
{[%clk 0:00:26.1]} 31. Qxe3 {[%clk 0:01:01.8]} 31... Rxe3 {[%clk 0:00:26.9]} 32.
Rd1 {[%clk 0:00:52.3]} 32... h6 {[%clk 0:00:26.9]} 33. Nf5 {[%clk 0:00:22]}
33... Rxe4 {[%clk 0:00:25.2]} 34. Nxh6 {[%clk 0:00:22.6]} 34... Re2 {[%clk
0:00:24]} 35. Nxf7+ {[%clk 0:00:20.3]} 35... Kg8 {[%clk 0:00:18.4]} 36. Nh6+
{[%clk 0:00:20.3]} 36... Kh7 {[%clk 0:00:18.8]} 37. f7 {[%clk 0:00:20.4]} 37...
Rxg2+ {[%clk 0:00:08.7]} 38. Kf1 {[%clk 0:00:20.6]} 38... Kg7 {[%clk 0:00:02.6]}
39. Rd8 {[%clk 0:00:21]} 39... Rh2 {[%clk 0:00:02.3]} 40. f8=Q+ {[%clk
0:00:20.8]} 40... Kg6 {[%clk 0:00:02.6]} 41. Rd6+ {[%clk 0:00:20.7]} 41... Kg5
{[%clk 0:00:02.4]} 42. Qf5+ {[%clk 0:00:21.2]} 42... Kh4 {[%clk 0:00:02.6]} 43.
Qg4# {[%clk 0:00:21.6]} 1-0

[Event "Early-Titled-Tuesday-Blitz-April-02-2024"]
[Site "Chess.com"]
[Date "2024.04.02"]
[Round "3"]
[White "Binary010"]
[Black "Art10ECHR"]
[Result "1-0"]
[WhiteElo "2799"]
[BlackElo "2524"]
[TimeControl "180+1"]
[EndTime "8:28:05 PDT"]
[Termination "Binary010 won by resignation"]

1. d4 {[%clk 0:03:00.9]} 1... d5 {[%clk 0:02:59]} 2. c4 {[%clk 0:03:00.5]} 2...
e6 {[%clk 0:02:55.2]} 3. Nf3 {[%clk 0:02:59.9]} 3... Nf6 {[%clk 0:02:50.2]} 4.
g3 {[%clk 0:03:00.1]} 4... dxc4 {[%clk 0:02:49.9]} 5. Bg2 {[%clk 0:02:59.7]}
5... c5 {[%clk 0:02:50.5]} 6. O-O {[%clk 0:02:54.2]} 6... Nc6 {[%clk 0:02:50.8]}
7. dxc5 {[%clk 0:02:54.2]} 7... Qxd1 {[%clk 0:02:51.5]} 8. Rxd1 {[%clk
0:02:54.6]} 8... Bxc5 {[%clk 0:02:51.9]} 9. Nbd2 {[%clk 0:02:55.2]} 9... c3
{[%clk 0:02:52.4]} 10. bxc3 {[%clk 0:02:55.9]} 10... O-O {[%clk 0:02:52.8]} 11.
Nb3 {[%clk 0:02:56]} 11... Be7 {[%clk 0:02:53.4]} 12. Nfd4 {[%clk 0:02:53.8]}
12... Nxd4 {[%clk 0:02:52.5]} 13. cxd4 {[%clk 0:02:48.2]} 13... Nd5 {[%clk
0:02:52.9]} 14. Bb2 {[%clk 0:02:39.1]} 14... f5 {[%clk 0:02:51.9]} 15. Rac1
{[%clk 0:02:38.1]} 15... b6 {[%clk 0:02:51.7]} 16. Nd2 {[%clk 0:02:28.4]} 16...
Ba6 {[%clk 0:02:49.8]} 17. e4 {[%clk 0:01:50.4]} 17... fxe4 {[%clk 0:02:41.1]}
18. Nxe4 {[%clk 0:01:50.5]} 18... Rac8 {[%clk 0:02:37.1]} 19. h4 {[%clk
0:01:25.2]} 19... h6 {[%clk 0:02:23.9]} 20. Bh3 {[%clk 0:01:13.8]} 20... Kf7
{[%clk 0:02:23]} 21. Nd2 {[%clk 0:01:11]} 21... Nb4 {[%clk 0:02:16.1]} 22. Nf3
{[%clk 0:00:46.8]} 22... Rxc1 {[%clk 0:01:33.7]} 23. Ne5+ {[%clk 0:00:36.7]}
23... Kf6 {[%clk 0:01:15.2]} 24. Rxc1 {[%clk 0:00:36.5]} 24... Nd3 {[%clk
0:00:51.1]} 25. Rc6 {[%clk 0:00:27.1]} 25... Nxe5 {[%clk 0:00:19.3]} 26. dxe5+
{[%clk 0:00:27]} 26... Kf7 {[%clk 0:00:17.4]} 27. Bxe6+ {[%clk 0:00:23]} 27...
Ke8 {[%clk 0:00:18]} 28. Bd4 {[%clk 0:00:18.3]} 28... Kd8 {[%clk 0:00:15.6]} 29.
Bg4 {[%clk 0:00:10.9]} 29... Bb7 {[%clk 0:00:13.6]} 30. Rc3 {[%clk 0:00:10.9]}
30... Rf7 {[%clk 0:00:11.2]} 31. f4 {[%clk 0:00:09.9]} 31... Bb4 {[%clk
0:00:09.2]} 32. Rd3 {[%clk 0:00:09.7]} 32... Kc7 {[%clk 0:00:08.1]} 33. Bf3
{[%clk 0:00:08.3]} 33... Bxf3 {[%clk 0:00:07.6]} 34. Rxf3 {[%clk 0:00:09.2]}
34... Rd7 {[%clk 0:00:07.9]} 35. Bc3 {[%clk 0:00:08]} 35... Bc5+ {[%clk
0:00:07.5]} 36. Kg2 {[%clk 0:00:07.2]} 36... Rd1 {[%clk 0:00:07.9]} 37. e6
{[%clk 0:00:06.4]} 37... Kd6 {[%clk 0:00:07.9]} 38. f5 {[%clk 0:00:07]} 38... g6
{[%clk 0:00:06.2]} 39. fxg6 {[%clk 0:00:05.3]} 39... h5 {[%clk 0:00:06.4]} 40.
g7 {[%clk 0:00:04.3]} 40... Rg1+ {[%clk 0:00:06.8]} 41. Kh2 {[%clk 0:00:04.8]}
41... Rh1+ {[%clk 0:00:07.5]} 42. Kxh1 {[%clk 0:00:05]} 1-0

[Event "Early-Titled-Tuesday-Blitz-April-02-2024"]
[Site "Chess.com"]
[Date "2024.04.02"]
[Round "3"]
[White "vladoboch"]
[Black "Navyblue1"]
[Result "1-0"]
[WhiteElo "2511"]
[BlackElo "2276"]
[TimeControl "180+1"]
[EndTime "8:28:05 PDT"]
[Termination "vladoboch won on time"]

1. h4 {[%clk 0:03:00.9]} 1... c5 {[%clk 0:02:54]} 2. h5 {[%clk 0:03:01.1]} 2...
d5 {[%clk 0:02:49.9]} 3. e3 {[%clk 0:03:01.3]} 3... e5 {[%clk 0:02:47.9]} 4. Be2
{[%clk 0:03:01.7]} 4... Nc6 {[%clk 0:02:45.6]} 5. Nc3 {[%clk 0:02:59.9]} 5...
Be6 {[%clk 0:02:43.9]} 6. b3 {[%clk 0:02:59.3]} 6... Qd7 {[%clk 0:02:23.7]} 7.
Bb2 {[%clk 0:02:58.4]} 7... h6 {[%clk 0:02:12.3]} 8. Nf3 {[%clk 0:02:42.1]} 8...
e4 {[%clk 0:02:11.3]} 9. Nh4 {[%clk 0:02:33.4]} 9... Nf6 {[%clk 0:02:11.8]} 10.
d3 {[%clk 0:02:25.6]} 10... Be7 {[%clk 0:01:46.4]} 11. dxe4 {[%clk 0:02:20.6]}
11... dxe4 {[%clk 0:01:46.3]} 12. Qxd7+ {[%clk 0:02:19.6]} 12... Bxd7 {[%clk
0:01:45.6]} 13. O-O-O {[%clk 0:02:17.5]} 13... a6 {[%clk 0:01:30.4]} 14. a4
{[%clk 0:02:07.1]} 14... Be6 {[%clk 0:01:27]} 15. g3 {[%clk 0:01:57.6]} 15...
O-O {[%clk 0:01:21.5]} 16. Ng2 {[%clk 0:01:56.2]} 16... Rfd8 {[%clk 0:01:13.3]}
17. Nf4 {[%clk 0:01:55.7]} 17... Bf5 {[%clk 0:01:08.9]} 18. g4 {[%clk
0:01:43.2]} 18... Nxg4 {[%clk 0:01:00.3]} 19. Bxg4 {[%clk 0:01:27.8]} 19... Bxg4
{[%clk 0:01:00]} 20. Rdg1 {[%clk 0:01:27.7]} 20... Bf3 {[%clk 0:00:56.1]} 21.
Ncd5 {[%clk 0:01:17.7]} 21... Bxh1 {[%clk 0:00:37.4]} 22. Rxg7+ {[%clk
0:01:16.3]} 22... Kf8 {[%clk 0:00:36.6]} 23. Rh7 {[%clk 0:01:16.9]} 23... Ke8
{[%clk 0:00:33.5]} 24. Nb6 {[%clk 0:01:04.1]} 24... Rab8 {[%clk 0:00:29.2]} 25.
Nfd5 {[%clk 0:00:57.3]} 25... Bf8 {[%clk 0:00:23.8]} 26. Rh8 {[%clk 0:00:33]}
26... Bf3 {[%clk 0:00:17.8]} 27. Bg7 {[%clk 0:00:24.3]} 27... Rxd5 {[%clk
0:00:17.8]} 28. Rxf8+ {[%clk 0:00:21.8]} 28... Ke7 {[%clk 0:00:17]} 29. Nxd5+
{[%clk 0:00:22.7]} 29... Kd6 {[%clk 0:00:15.6]} 30. Rxb8 {[%clk 0:00:16.5]}
30... Nxb8 {[%clk 0:00:16.5]} 31. Nf4 {[%clk 0:00:13.9]} 31... Nc6 {[%clk
0:00:14.9]} 32. Bxh6 {[%clk 0:00:14.1]} 32... Ke7 {[%clk 0:00:13.7]} 33. Bg5+
{[%clk 0:00:13.7]} 33... Kf8 {[%clk 0:00:13.6]} 34. Bf6 {[%clk 0:00:13.8]} 34...
Ne7 {[%clk 0:00:11]} 35. h6 {[%clk 0:00:13.4]} 35... Ng8 {[%clk 0:00:08]} 36. h7
{[%clk 0:00:13.7]} 36... Nxf6 {[%clk 0:00:08.5]} 37. h8=Q+ {[%clk 0:00:13.9]}
37... Ke7 {[%clk 0:00:09.4]} 38. Nd5+ {[%clk 0:00:12.2]} 38... Nxd5 {[%clk
0:00:08.5]} 39. Qe5+ {[%clk 0:00:12.9]} 39... Kd7 {[%clk 0:00:07.9]} 40. Qxd5+
{[%clk 0:00:13.8]} 40... Ke7 {[%clk 0:00:06.9]} 41. Qxc5+ {[%clk 0:00:13.8]}
41... Ke6 {[%clk 0:00:03.1]} 42. Qb6+ {[%clk 0:00:14.2]} 1-0

[Event "Early-Titled-Tuesday-Blitz-April-02-2024"]
[Site "Chess.com"]
[Date "2024.04.02"]
[Round "3"]
[White "SuperJesus88"]
[Black "Kildepiotr"]
[Result "0-1"]
[WhiteElo "2519"]
[BlackElo "2758"]
[TimeControl "180+1"]
[EndTime "8:28:08 PDT"]
[Termination "Kildepiotr won on time"]

1. e4 {[%clk 0:03:00.9]} 1... g6 {[%clk 0:02:58.5]} 2. d4 {[%clk 0:03:00.5]}
2... Bg7 {[%clk 0:02:58.7]} 3. Nc3 {[%clk 0:03:01.1]} 3... c6 {[%clk 0:02:59.2]}
4. Be3 {[%clk 0:03:00.7]} 4... d5 {[%clk 0:02:59.3]} 5. Nf3 {[%clk 0:03:00.4]}
5... dxe4 {[%clk 0:02:59.3]} 6. Nxe4 {[%clk 0:03:00.5]} 6... Nf6 {[%clk
0:03:00.2]} 7. Nxf6+ {[%clk 0:03:00.7]} 7... Bxf6 {[%clk 0:03:01.1]} 8. h4
{[%clk 0:02:56.6]} 8... h5 {[%clk 0:02:56.9]} 9. Qd2 {[%clk 0:02:56.3]} 9... Be6
{[%clk 0:02:55.5]} 10. Ng5 {[%clk 0:02:52.8]} 10... Bxg5 {[%clk 0:02:55.1]} 11.
hxg5 {[%clk 0:02:50.7]} 11... Nd7 {[%clk 0:02:55.4]} 12. c4 {[%clk 0:02:40.8]}
12... Nb6 {[%clk 0:02:54.2]} 13. b3 {[%clk 0:02:38.1]} 13... Qd7 {[%clk
0:02:49.3]} 14. a4 {[%clk 0:02:36.6]} 14... Nc8 {[%clk 0:02:45.5]} 15. O-O-O
{[%clk 0:02:28.1]} 15... Nd6 {[%clk 0:02:43.3]} 16. Kb2 {[%clk 0:02:21.2]} 16...
Rd8 {[%clk 0:02:27]} 17. Qc3 {[%clk 0:02:17.7]} 17... O-O {[%clk 0:02:19.1]} 18.
Bd3 {[%clk 0:02:10.4]} 18... Bf5 {[%clk 0:02:15.6]} 19. Be2 {[%clk 0:02:07.8]}
19... b5 {[%clk 0:02:05.9]} 20. axb5 {[%clk 0:01:59]} 20... cxb5 {[%clk
0:02:06]} 21. c5 {[%clk 0:01:59.2]} 21... Ne4 {[%clk 0:02:06.1]} 22. Qa5 {[%clk
0:01:55.6]} 22... Qd5 {[%clk 0:01:53.7]} 23. Qxb5 {[%clk 0:01:14.4]} 23... Rb8
{[%clk 0:01:32.4]} 24. Qc4 {[%clk 0:01:14.3]} 24... Qb7 {[%clk 0:01:14.4]} 25.
c6 {[%clk 0:01:13]} 25... Qc7 {[%clk 0:01:12.1]} 26. d5 {[%clk 0:01:08.9]} 26...
a5 {[%clk 0:01:05.9]} 27. g4 {[%clk 0:00:22.5]} 27... Rb4 {[%clk 0:00:59.9]} 28.
gxf5 {[%clk 0:00:22.4]} 28... Rxc4 {[%clk 0:00:59.8]} 29. Bxc4 {[%clk
0:00:23.3]} 29... Qe5+ {[%clk 0:00:54.7]} 30. Bd4 {[%clk 0:00:23.4]} 30... Qxf5
{[%clk 0:00:55.3]} 31. Rhe1 {[%clk 0:00:13.5]} 31... Nd6 {[%clk 0:00:47.2]} 32.
Rxe7 {[%clk 0:00:08.2]} 32... a4 {[%clk 0:00:46.8]} 33. Re5 {[%clk 0:00:06.3]}
33... Qf3 {[%clk 0:00:38.4]} 34. Rd3 {[%clk 0:00:06.9]} 34... Nxc4+ {[%clk
0:00:35.7]} 35. Kc3 {[%clk 0:00:06.2]} 35... Nxe5 {[%clk 0:00:22.8]} 36. Rxf3
{[%clk 0:00:06.1]} 36... Nxf3 {[%clk 0:00:23.7]} 37. bxa4 {[%clk 0:00:04.7]}
37... h4 {[%clk 0:00:21.5]} 38. d6 {[%clk 0:00:01.5]} 38... h3 {[%clk
0:00:20.2]} 39. d7 {[%clk 0:00:01.9]} 39... h2 {[%clk 0:00:19.6]} 40. c7 {[%clk
0:00:02.5]} 40... h1=Q {[%clk 0:00:19.5]} 41. d8=Q {[%clk 0:00:02.9]} 41... Qa1+
{[%clk 0:00:16.2]} 42. Kc4 {[%clk 0:00:01.6]} 42... Qxd4+ {[%clk 0:00:16.3]} 43.
Qxd4 {[%clk 0:00:01.9]} 43... Nxd4 {[%clk 0:00:17.2]} 44. Kxd4 {[%clk 0:00:02]}
44... Rc8 {[%clk 0:00:17.7]} 0-1

[Event "Early-Titled-Tuesday-Blitz-April-02-2024"]
[Site "Chess.com"]
[Date "2024.04.02"]
[Round "3"]
[White "sebsep"]
[Black "SteinerPro12"]
[Result "1-0"]
[WhiteElo "2612"]
[BlackElo "2329"]
[TimeControl "180+1"]
[EndTime "8:28:08 PDT"]
[Termination "sebsep won on time"]

1. e4 {[%clk 0:03:00.9]} 1... c6 {[%clk 0:02:59.9]} 2. d4 {[%clk 0:03:00.1]}
2... d5 {[%clk 0:03:00.1]} 3. exd5 {[%clk 0:03:01]} 3... cxd5 {[%clk 0:03:00.5]}
4. Bd3 {[%clk 0:03:01.6]} 4... Nc6 {[%clk 0:02:59.8]} 5. c3 {[%clk 0:03:02]}
5... Nf6 {[%clk 0:02:59.7]} 6. Bf4 {[%clk 0:03:02.5]} 6... Bg4 {[%clk
0:02:55.7]} 7. Qb3 {[%clk 0:03:02.6]} 7... Qd7 {[%clk 0:02:54.3]} 8. Nd2 {[%clk
0:03:03]} 8... e6 {[%clk 0:02:53.7]} 9. Ngf3 {[%clk 0:03:03.6]} 9... Bd6 {[%clk
0:02:51.1]} 10. Bxd6 {[%clk 0:03:03.6]} 10... Qxd6 {[%clk 0:02:51.4]} 11. O-O
{[%clk 0:03:04.3]} 11... O-O {[%clk 0:02:50.6]} 12. Rfe1 {[%clk 0:03:04.6]}
12... a6 {[%clk 0:02:39.5]} 13. Ne5 {[%clk 0:02:58.8]} 13... Bh5 {[%clk
0:02:35.3]} 14. a3 {[%clk 0:02:49.9]} 14... Nd7 {[%clk 0:02:24.6]} 15. f4 {[%clk
0:02:38.1]} 15... f6 {[%clk 0:02:05.5]} 16. Nxd7 {[%clk 0:02:36.5]} 16... Qxd7
{[%clk 0:02:05.8]} 17. Qc2 {[%clk 0:02:36.5]} 17... h6 {[%clk 0:01:49.5]} 18.
Nf1 {[%clk 0:02:07.8]} 18... Rae8 {[%clk 0:01:45.4]} 19. Ng3 {[%clk 0:02:07.1]}
19... Bf7 {[%clk 0:01:43.8]} 20. Re3 {[%clk 0:01:56.6]} 20... e5 {[%clk
0:01:43.6]} 21. fxe5 {[%clk 0:01:55.8]} 21... fxe5 {[%clk 0:01:44]} 22. dxe5
{[%clk 0:01:55.5]} 22... Rxe5 {[%clk 0:01:40.6]} 23. Rxe5 {[%clk 0:01:40.3]}
23... Nxe5 {[%clk 0:01:40.2]} 24. Re1 {[%clk 0:01:40.6]} 24... Nxd3 {[%clk
0:01:25.4]} 25. Qxd3 {[%clk 0:01:41.5]} 25... Qc6 {[%clk 0:01:25.6]} 26. Qd4
{[%clk 0:01:39.9]} 26... Re8 {[%clk 0:00:27.5]} 27. Rxe8+ {[%clk 0:01:23.2]}
27... Qxe8 {[%clk 0:00:27]} 28. Kf2 {[%clk 0:01:15]} 28... Qd7 {[%clk
0:00:24.1]} 29. h3 {[%clk 0:01:12.7]} 29... Qe6 {[%clk 0:00:22.2]} 30. Qe3
{[%clk 0:01:10.1]} 30... Qf6+ {[%clk 0:00:20.5]} 31. Kg1 {[%clk 0:01:05.5]}
31... Bg6 {[%clk 0:00:16.9]} 32. Ne2 {[%clk 0:00:58.6]} 32... Be4 {[%clk
0:00:13.5]} 33. Ng3 {[%clk 0:00:58.4]} 33... Bg6 {[%clk 0:00:12.7]} 34. Kh2
{[%clk 0:00:44.4]} 34... h5 {[%clk 0:00:11.4]} 35. Kg1 {[%clk 0:00:40.5]} 35...
h4 {[%clk 0:00:11.3]} 36. Nf1 {[%clk 0:00:40.7]} 36... Be4 {[%clk 0:00:08.4]}
37. Nd2 {[%clk 0:00:40.9]} 37... Bg6 {[%clk 0:00:07.7]} 38. Qf2 {[%clk
0:00:39.1]} 38... Qg5 {[%clk 0:00:07.3]} 39. a4 {[%clk 0:00:24.5]} 39... Be4
{[%clk 0:00:07.4]} 40. a5 {[%clk 0:00:22.7]} 40... Qh6 {[%clk 0:00:02.9]} 41.
Qe2 {[%clk 0:00:20.7]} 41... Qf4 {[%clk 0:00:01.4]} 42. Qf2 {[%clk 0:00:19.3]}
42... Qg5 {[%clk 0:00:01.4]} 43. Qe2 {[%clk 0:00:18.3]} 43... Qf4 {[%clk
0:00:01.8]} 44. b4 {[%clk 0:00:13.8]} 1-0